[Event "*** Qualifier 4: Titled Tuesday 3|2 Blitz"]
[Site "Chess.com"]
[Date "2017.04.25"]
[Round "3"]
[White "PelinGorki"]
[Black "Elshan1985"]
[Result "0-1"]
[WhiteElo "2331"]
[BlackElo "2494"]
[TimeControl "180+2"]
[EndTime "13:34:11 PDT"]
[Termination "Elshan1985 won by resignation"]

1. e4 {[%clk 0:03:01.9]} 1... e5 {[%clk 0:03:01]} 2. Nc3 {[%clk 0:03:02.6]} 2...
Nf6 {[%clk 0:03:00.4]} 3. Bc4 {[%clk 0:03:02.1]} 3... Nc6 {[%clk 0:02:57.3]} 4.
d3 {[%clk 0:03:03.1]} 4... Na5 {[%clk 0:02:58.4]} 5. Nge2 {[%clk 0:03:04.4]}
5... Nxc4 {[%clk 0:02:59.5]} 6. dxc4 {[%clk 0:03:06.3]} 6... d6 {[%clk
0:03:00.4]} 7. O-O {[%clk 0:03:07.4]} 7... g6 {[%clk 0:03:00.7]} 8. Qd3 {[%clk
0:03:06.1]} 8... Bg7 {[%clk 0:03:01.9]} 9. f4 {[%clk 0:03:07.4]} 9... exf4
{[%clk 0:03:02]} 10. Bxf4 {[%clk 0:03:09.3]} 10... O-O {[%clk 0:03:02.7]} 11.
Rae1 {[%clk 0:03:09]} 11... Ng4 {[%clk 0:03:02.8]} 12. b3 {[%clk 0:03:06.5]}
12... Ne5 {[%clk 0:03:03.7]} 13. Qg3 {[%clk 0:03:07.1]} 13... Be6 {[%clk
0:03:03.6]} 14. Nd4 {[%clk 0:03:07.7]} 14... Qd7 {[%clk 0:03:02.9]} 15. Nd5
{[%clk 0:02:55.8]} 15... Bxd5 {[%clk 0:03:03.9]} 16. cxd5 {[%clk 0:02:49.9]}
16... a5 {[%clk 0:03:00]} 17. a4 {[%clk 0:02:48.9]} 17... c6 {[%clk 0:03:00.1]}
18. c4 {[%clk 0:02:49.3]} 18... Rae8 {[%clk 0:02:58.5]} 19. Nf3 {[%clk
0:02:45.4]} 19... Qc7 {[%clk 0:02:39.4]} 20. Nxe5 {[%clk 0:02:05]} 20... Bxe5
{[%clk 0:02:39.6]} 21. h4 {[%clk 0:02:05.9]} 21... Bxf4 {[%clk 0:02:24.6]} 22.
Rxf4 {[%clk 0:02:05.5]} 22... cxd5 {[%clk 0:02:25]} 23. exd5 {[%clk 0:02:05.4]}
23... Qb6+ {[%clk 0:02:20.6]} 24. Kh2 {[%clk 0:02:03.1]} 24... Rxe1 {[%clk
0:02:21.3]} 25. Qxe1 {[%clk 0:02:05]} 25... Qxb3 {[%clk 0:02:22.6]} 26. h5
{[%clk 0:01:57.2]} 26... Qb2 {[%clk 0:01:55.7]} 27. Qe7 {[%clk 0:01:17.2]} 27...
Qe5 {[%clk 0:01:53.1]} 28. Qxe5 {[%clk 0:01:17.9]} 28... dxe5 {[%clk 0:01:54.8]}
29. Re4 {[%clk 0:01:09.6]} 29... f6 {[%clk 0:01:56]} 30. hxg6 {[%clk 0:01:06.4]}
30... hxg6 {[%clk 0:01:56.5]} 31. c5 {[%clk 0:01:05.8]} 31... Rd8 {[%clk
0:01:50.2]} 32. d6 {[%clk 0:01:00.6]} 32... b6 {[%clk 0:01:40.8]} 33. Rc4 {[%clk
0:00:30.5]} 33... bxc5 {[%clk 0:01:40.9]} 34. Rxc5 {[%clk 0:00:32.4]} 34... Rxd6
{[%clk 0:01:41.8]} 35. Rxa5 {[%clk 0:00:34.3]} 35... Kf7 {[%clk 0:01:42.1]} 36.
Kg3 {[%clk 0:00:33.2]} 36... Rd3+ {[%clk 0:01:39.1]} 37. Kf2 {[%clk 0:00:32.4]}
37... Ke6 {[%clk 0:01:39.8]} 38. Ra6+ {[%clk 0:00:33.2]} 38... Kf5 {[%clk
0:01:40.7]} 39. a5 {[%clk 0:00:34.5]} 39... Ra3 {[%clk 0:01:41.1]} 40. Ra8
{[%clk 0:00:35]} 40... g5 {[%clk 0:01:40.4]} 41. a6 {[%clk 0:00:36.5]} 41... g4
{[%clk 0:01:41.2]} 42. a7 {[%clk 0:00:37.4]} 42... Kf4 {[%clk 0:01:32]} 43. g3+
{[%clk 0:00:26]} 43... Ke4 {[%clk 0:01:30.3]} 44. Rf8 {[%clk 0:00:15.4]} 44...
Ra2+ {[%clk 0:01:31.1]} 45. Kf1 {[%clk 0:00:15.1]} 45... Rxa7 {[%clk 0:01:30.9]}
46. Rxf6 {[%clk 0:00:16.6]} 46... Ra2 {[%clk 0:01:25.6]} 47. Rf7 {[%clk
0:00:12.2]} 47... Ke3 {[%clk 0:01:24.4]} 48. Rf5 {[%clk 0:00:11.3]} 48... e4
{[%clk 0:01:06.4]} 49. Rf4 {[%clk 0:00:12.3]} 49... Ra1+ {[%clk 0:01:07.6]} 50.
Kg2 {[%clk 0:00:13.3]} 50... Kd3 {[%clk 0:01:09]} 51. Rxg4 {[%clk 0:00:11.8]}
51... e3 {[%clk 0:01:10.4]} 52. Rg8 {[%clk 0:00:12.5]} 52... e2 {[%clk
0:01:11.6]} 53. Rd8+ {[%clk 0:00:13.4]} 53... Kc4 {[%clk 0:01:12.7]} 54. Rc8+
{[%clk 0:00:11.8]} 54... Kd5 {[%clk 0:01:13.8]} 55. Re8 {[%clk 0:00:12.9]} 55...
e1=Q {[%clk 0:01:13.9]} 0-1

[Event "*** Qualifier 4: Titled Tuesday 3|2 Blitz"]
[Site "Chess.com"]
[Date "2017.04.25"]
[Round "3"]
[White "VMikhalevski"]
[Black "Gabix_94"]
[Result "1-0"]
[WhiteElo "2547"]
[BlackElo "2430"]
[TimeControl "180+2"]
[EndTime "13:34:20 PDT"]
[Termination "VMikhalevski won on time"]

1. c4 {[%clk 0:03:02]} 1... c5 {[%clk 0:02:59.6]} 2. g3 {[%clk 0:03:02.3]} 2...
Nc6 {[%clk 0:02:59.8]} 3. Bg2 {[%clk 0:03:03.7]} 3... g6 {[%clk 0:03:01.4]} 4.
Nc3 {[%clk 0:03:04.4]} 4... Bg7 {[%clk 0:03:02.9]} 5. Nf3 {[%clk 0:03:05.8]}
5... e5 {[%clk 0:03:04]} 6. O-O {[%clk 0:03:05]} 6... Nge7 {[%clk 0:03:05.2]} 7.
Ne1 {[%clk 0:03:05.7]} 7... Rb8 {[%clk 0:03:00.6]} 8. a3 {[%clk 0:03:04.6]} 8...
a6 {[%clk 0:03:01.8]} 9. b4 {[%clk 0:03:04.6]} 9... cxb4 {[%clk 0:03:00.8]} 10.
axb4 {[%clk 0:03:05.3]} 10... b5 {[%clk 0:03:00.5]} 11. cxb5 {[%clk 0:03:01.5]}
11... axb5 {[%clk 0:03:02.4]} 12. Nc2 {[%clk 0:03:00.6]} 12... d5 {[%clk
0:02:57.4]} 13. d3 {[%clk 0:02:49.2]} 13... O-O {[%clk 0:02:54.7]} 14. Bg5
{[%clk 0:02:47.3]} 14... f6 {[%clk 0:02:50.3]} 15. Bd2 {[%clk 0:02:46.2]} 15...
Be6 {[%clk 0:02:49]} 16. Ra6 {[%clk 0:02:39.2]} 16... Qc8 {[%clk 0:02:42.7]} 17.
Qa1 {[%clk 0:02:36.5]} 17... f5 {[%clk 0:02:36.9]} 18. Rc1 {[%clk 0:02:34.4]}
18... Qd7 {[%clk 0:02:27.7]} 19. Qa3 {[%clk 0:02:29.3]} 19... Rfc8 {[%clk
0:02:26.5]} 20. Na1 {[%clk 0:02:26.5]} 20... d4 {[%clk 0:02:19.8]} 21. Nb1
{[%clk 0:02:20.7]} 21... Nd5 {[%clk 0:01:43.4]} 22. Nb3 {[%clk 0:02:19.8]} 22...
Ncxb4 {[%clk 0:01:37.8]} 23. Bxb4 {[%clk 0:02:02.1]} 23... Rxc1+ {[%clk
0:01:32.4]} 24. Nxc1 {[%clk 0:01:56.3]} 24... Rc8 {[%clk 0:01:21.3]} 25. Rd6
{[%clk 0:01:42.4]} 25... Qc7 {[%clk 0:01:19.1]} 26. Nb3 {[%clk 0:01:28.6]} 26...
Nxb4 {[%clk 0:01:15.7]} 27. Rxe6 {[%clk 0:01:26.2]} 27... Qc2 {[%clk 0:01:01]}
28. Qxb4 {[%clk 0:01:16.2]} 28... Qxb1+ {[%clk 0:01:00.3]} 29. Bf1 {[%clk
0:01:17.2]} 29... Bf8 {[%clk 0:01:00.7]} 30. Qxb5 {[%clk 0:01:10.1]} 30... Rc1
{[%clk 0:01:00.6]} 31. Qd5 {[%clk 0:00:58.8]} 31... Rxf1+ {[%clk 0:01:00.5]} 32.
Kg2 {[%clk 0:01:00.1]} 32... Rg1+ {[%clk 0:00:59.7]} 33. Kh3 {[%clk 0:01:01.3]}
33... Kg7 {[%clk 0:00:44.7]} 34. Qxe5+ {[%clk 0:00:59.9]} 34... Kh6 {[%clk
0:00:45.8]} 35. Qf4+ {[%clk 0:00:59.4]} 35... Kg7 {[%clk 0:00:44.4]} 36. Qxd4+
{[%clk 0:00:59.8]} 36... Kh6 {[%clk 0:00:44.7]} 37. Qh4+ {[%clk 0:00:51.7]}
37... Kg7 {[%clk 0:00:44.5]} 38. Qf6+ {[%clk 0:00:52.7]} 38... Kh6 {[%clk
0:00:44.1]} 39. Qxf8+ {[%clk 0:00:39.9]} 39... Kh5 {[%clk 0:00:44.3]} 40. Nd2
{[%clk 0:00:40.8]} 40... Qb7 {[%clk 0:00:20.9]} 41. Nf3 {[%clk 0:00:33]} 41...
Qb1 {[%clk 0:00:19.7]} 42. Nd2 {[%clk 0:00:29.2]} 42... Qb7 {[%clk 0:00:20.7]}
43. e4 {[%clk 0:00:26.3]} 43... Qd7 {[%clk 0:00:17.4]} 44. Re7 {[%clk
0:00:25.7]} 44... g5 {[%clk 0:00:12.5]} 45. Qf7+ {[%clk 0:00:23.6]} 1-0

[Event "*** Qualifier 4: Titled Tuesday 3|2 Blitz"]
[Site "Chess.com"]
[Date "2017.04.25"]
[Round "3"]
[White "Yaacovn"]
[Black "GulamaliRises"]
[Result "1-0"]
[WhiteElo "2611"]
[BlackElo "2480"]
[TimeControl "180+2"]
[EndTime "13:34:34 PDT"]
[Termination "Yaacovn won by resignation"]

1. d4 {[%clk 0:03:02]} 1... d5 {[%clk 0:02:53.5]} 2. Nf3 {[%clk 0:03:02.8]} 2...
Nf6 {[%clk 0:02:54.1]} 3. c4 {[%clk 0:03:03.6]} 3... dxc4 {[%clk 0:02:55.2]} 4.
e3 {[%clk 0:03:03.4]} 4... e6 {[%clk 0:02:55.5]} 5. Bxc4 {[%clk 0:03:03.6]} 5...
a6 {[%clk 0:02:57]} 6. O-O {[%clk 0:03:04.1]} 6... c5 {[%clk 0:02:58.3]} 7. dxc5
{[%clk 0:03:04.4]} 7... Bxc5 {[%clk 0:02:57.1]} 8. Qxd8+ {[%clk 0:03:05]} 8...
Kxd8 {[%clk 0:02:59]} 9. Ng5 {[%clk 0:03:01]} 9... Ke7 {[%clk 0:02:58.9]} 10.
Nc3 {[%clk 0:03:02.1]} 10... b5 {[%clk 0:02:51.4]} 11. Nce4 {[%clk 0:02:55.7]}
11... Bb6 {[%clk 0:02:39.7]} 12. Be2 {[%clk 0:02:51.9]} 12... Bb7 {[%clk
0:02:36.9]} 13. Nxf6 {[%clk 0:02:48.2]} 13... gxf6 {[%clk 0:02:37.7]} 14. Bf3
{[%clk 0:02:49.5]} 14... Nc6 {[%clk 0:02:30.5]} 15. Nh3 {[%clk 0:02:42.7]} 15...
Rab8 {[%clk 0:02:23.4]} 16. b3 {[%clk 0:02:43.8]} 16... Rhc8 {[%clk 0:02:07.9]}
17. Ba3+ {[%clk 0:02:39.7]} 17... b4 {[%clk 0:01:58.1]} 18. Bb2 {[%clk
0:02:25.3]} 18... Ne5 {[%clk 0:01:59.1]} 19. Bxb7 {[%clk 0:02:16.9]} 19... Rxb7
{[%clk 0:02:01]} 20. Nf4 {[%clk 0:02:14.1]} 20... a5 {[%clk 0:01:43.4]} 21. Rfc1
{[%clk 0:02:10.3]} 21... Rbc7 {[%clk 0:01:44.4]} 22. Rxc7+ {[%clk 0:02:10.7]}
22... Rxc7 {[%clk 0:01:46.3]} 23. Rc1 {[%clk 0:02:10.2]} 23... Rxc1+ {[%clk
0:01:47]} 24. Bxc1 {[%clk 0:02:12.1]} 24... Nd7 {[%clk 0:01:11]} 25. Bb2 {[%clk
0:02:02.3]} 25... f5 {[%clk 0:01:11.8]} 26. Kf1 {[%clk 0:01:56.7]} 26... Bc7
{[%clk 0:01:13.1]} 27. Nd3 {[%clk 0:01:57]} 27... Nb6 {[%clk 0:01:07.6]} 28. h3
{[%clk 0:01:55.3]} 28... Nd5 {[%clk 0:01:08.5]} 29. Ke2 {[%clk 0:01:55.5]} 29...
f6 {[%clk 0:01:07.4]} 30. f3 {[%clk 0:01:55.4]} 30... Bd6 {[%clk 0:00:52.9]} 31.
e4 {[%clk 0:01:52.1]} 31... fxe4 {[%clk 0:00:54.8]} 32. fxe4 {[%clk 0:01:53.4]}
32... Nc7 {[%clk 0:00:29]} 33. g4 {[%clk 0:01:54]} 33... Nb5 {[%clk 0:00:29.2]}
34. Kf3 {[%clk 0:01:53.2]} 34... e5 {[%clk 0:00:28.4]} 35. Ke2 {[%clk
0:01:52.4]} 35... Bc7 {[%clk 0:00:28.2]} 36. h4 {[%clk 0:01:37.4]} 36... Bb6
{[%clk 0:00:29.4]} 37. g5 {[%clk 0:01:37.3]} 37... Bd4 {[%clk 0:00:30.2]} 38.
Bxd4 {[%clk 0:01:19.3]} 38... Nxd4+ {[%clk 0:00:27.1]} 39. Ke3 {[%clk
0:01:17.7]} 39... Nc2+ {[%clk 0:00:23.4]} 40. Kf2 {[%clk 0:01:12.2]} 40... Nd4
{[%clk 0:00:25.3]} 41. gxf6+ {[%clk 0:01:06.8]} 41... Kxf6 {[%clk 0:00:26.3]}
42. Nc5 {[%clk 0:01:08.4]} 42... Nb5 {[%clk 0:00:23.4]} 43. Nb7 {[%clk 0:01:07]}
43... Nc3 {[%clk 0:00:24]} 44. Ke3 {[%clk 0:01:05.4]} 44... a4 {[%clk 0:00:20]}
45. bxa4 {[%clk 0:00:52.7]} 45... Nxa4 {[%clk 0:00:19]} 46. Kd3 {[%clk
0:00:50.7]} 46... Nc3 {[%clk 0:00:12.9]} 47. a3 {[%clk 0:00:47.9]} 47... Nxe4
{[%clk 0:00:14]} 48. axb4 {[%clk 0:00:49.2]} 48... Nf2+ {[%clk 0:00:13.6]} 49.
Kc4 {[%clk 0:00:45.4]} 49... Ke6 {[%clk 0:00:11.9]} 50. b5 {[%clk 0:00:44.9]}
50... Kd7 {[%clk 0:00:12.4]} 51. Kd5 {[%clk 0:00:44.5]} 51... e4 {[%clk
0:00:13.4]} 52. Nc5+ {[%clk 0:00:45.1]} 52... Kc7 {[%clk 0:00:15]} 53. Nxe4
{[%clk 0:00:46.5]} 53... Ng4 {[%clk 0:00:10.6]} 54. Kc5 {[%clk 0:00:45.1]} 54...
Ne3 {[%clk 0:00:09.7]} 55. b6+ {[%clk 0:00:46.1]} 55... Kb8 {[%clk 0:00:09]} 56.
Kb5 {[%clk 0:00:48]} 56... Nf5 {[%clk 0:00:10.4]} 57. h5 {[%clk 0:00:47.9]}
57... Ng7 {[%clk 0:00:11.8]} 58. Nf6 {[%clk 0:00:47]} 58... h6 {[%clk
0:00:12.3]} 59. Kc6 {[%clk 0:00:48.2]} 59... Nf5 {[%clk 0:00:13]} 60. Nd7+
{[%clk 0:00:49]} 1-0

[Event "*** Qualifier 4: Titled Tuesday 3|2 Blitz"]
[Site "Chess.com"]
[Date "2017.04.25"]
[Round "3"]
[White "tigra"]
[Black "sergiochess83"]
[Result "0-1"]
[WhiteElo "2591"]
[BlackElo "2724"]
[TimeControl "180+2"]
[EndTime "13:34:41 PDT"]
[Termination "sergiochess83 won on time"]

1. e4 {[%clk 0:03:02]} 1... c6 {[%clk 0:03:00.9]} 2. d4 {[%clk 0:03:02.2]} 2...
d5 {[%clk 0:03:01.9]} 3. e5 {[%clk 0:03:03.2]} 3... Bf5 {[%clk 0:03:02.3]} 4. h4
{[%clk 0:03:04.3]} 4... h5 {[%clk 0:03:01]} 5. Nd2 {[%clk 0:03:03.3]} 5... e6
{[%clk 0:03:00.4]} 6. Nb3 {[%clk 0:03:04.1]} 6... Be7 {[%clk 0:02:57.4]} 7. g3
{[%clk 0:03:03.1]} 7... Nd7 {[%clk 0:02:57.4]} 8. Bh3 {[%clk 0:03:02.2]} 8...
Be4 {[%clk 0:02:48.4]} 9. f3 {[%clk 0:03:01.7]} 9... Bg6 {[%clk 0:02:49.4]} 10.
Ne2 {[%clk 0:03:03.1]} 10... Nh6 {[%clk 0:02:36.2]} 11. Nf4 {[%clk 0:03:00.6]}
11... Nf5 {[%clk 0:02:33.6]} 12. Kf2 {[%clk 0:02:40]} 12... c5 {[%clk
0:02:30.6]} 13. c3 {[%clk 0:02:40.7]} 13... Qb6 {[%clk 0:02:29.9]} 14. Kg2
{[%clk 0:02:36.8]} 14... a5 {[%clk 0:02:11.4]} 15. dxc5 {[%clk 0:02:30.2]} 15...
Nxc5 {[%clk 0:02:10.6]} 16. Nd4 {[%clk 0:02:29.2]} 16... Rd8 {[%clk 0:01:20.1]}
17. Nxf5 {[%clk 0:02:29]} 17... Bxf5 {[%clk 0:01:20.9]} 18. Bxf5 {[%clk
0:02:29.5]} 18... exf5 {[%clk 0:01:22.2]} 19. Nxd5 {[%clk 0:02:29.5]} 19... Qc6
{[%clk 0:01:10.9]} 20. c4 {[%clk 0:02:16.7]} 20... b5 {[%clk 0:01:09]} 21. Nxe7
{[%clk 0:02:08]} 21... Kxe7 {[%clk 0:01:08.9]} 22. Bg5+ {[%clk 0:02:08.3]} 22...
f6 {[%clk 0:01:10.1]} 23. exf6+ {[%clk 0:02:07.6]} 23... gxf6 {[%clk 0:01:09.5]}
24. Qe2+ {[%clk 0:01:54.8]} 24... Qe6 {[%clk 0:01:08]} 25. Rhe1 {[%clk
0:01:02.5]} 25... fxg5 {[%clk 0:01:05.3]} 26. Qf2 {[%clk 0:01:03.5]} 26... Ne4
{[%clk 0:01:06.2]} 27. fxe4 {[%clk 0:01:04.1]} 27... f4 {[%clk 0:01:07.5]} 28.
hxg5 {[%clk 0:00:42.1]} 28... fxg3 {[%clk 0:01:03.2]} 29. Qc5+ {[%clk 0:00:39]}
29... Kf7 {[%clk 0:00:58.2]} 30. Rf1+ {[%clk 0:00:38.6]} 30... Kg7 {[%clk
0:00:59.1]} 31. Rad1 {[%clk 0:00:32.5]} 31... Rxd1 {[%clk 0:00:41.2]} 32. Rxd1
{[%clk 0:00:32.1]} 32... Qxe4+ {[%clk 0:00:35.9]} 33. Kg1 {[%clk 0:00:33.1]}
33... Re8 {[%clk 0:00:35.1]} 34. cxb5 {[%clk 0:00:19.9]} 34... h4 {[%clk
0:00:22.2]} 35. b6 {[%clk 0:00:20.9]} 35... h3 {[%clk 0:00:12.8]} 36. Qc7+
{[%clk 0:00:21.1]} 36... Kg8 {[%clk 0:00:08.6]} 37. Qxg3 {[%clk 0:00:21.9]}
37... h2+ {[%clk 0:00:09.8]} 38. Kxh2 {[%clk 0:00:12.1]} 38... Qe2+ {[%clk
0:00:10.7]} 39. Kh3 {[%clk 0:00:10.2]} 39... Qh5+ {[%clk 0:00:10.3]} 40. Kg2
{[%clk 0:00:11.4]} 40... Qxd1 {[%clk 0:00:11.3]} 41. Qc7 {[%clk 0:00:07.9]}
41... Qd5+ {[%clk 0:00:10.3]} 42. Kf2 {[%clk 0:00:08.3]} 42... Qf5+ {[%clk
0:00:10.5]} 43. Kg2 {[%clk 0:00:07.8]} 43... Qxg5+ {[%clk 0:00:10.4]} 44. Kf2
{[%clk 0:00:09.5]} 44... Qf5+ {[%clk 0:00:11]} 45. Kg2 {[%clk 0:00:10.3]} 45...
Re2+ {[%clk 0:00:11.4]} 46. Kg3 {[%clk 0:00:11.1]} 46... Re3+ {[%clk 0:00:12.6]}
47. Kg2 {[%clk 0:00:09.6]} 47... Qf3+ {[%clk 0:00:13.6]} 0-1

[Event "*** Qualifier 4: Titled Tuesday 3|2 Blitz"]
[Site "Chess.com"]
[Date "2017.04.25"]
[Round "3"]
[White "kreonx"]
[Black "Grootneus"]
[Result "1/2-1/2"]
[WhiteElo "2226"]
[BlackElo "2101"]
[TimeControl "180+2"]
[EndTime "13:34:45 PDT"]
[Termination "Game drawn by repetition"]

1. e4 {[%clk 0:03:02]} 1... c5 {[%clk 0:02:58.7]} 2. Nc3 {[%clk 0:02:57.4]} 2...
a6 {[%clk 0:02:59.3]} 3. g3 {[%clk 0:02:56.7]} 3... b5 {[%clk 0:03:00.1]} 4. Bg2
{[%clk 0:02:57.9]} 4... Bb7 {[%clk 0:03:01.9]} 5. d3 {[%clk 0:02:53.3]} 5... e6
{[%clk 0:03:02.9]} 6. Nge2 {[%clk 0:02:40.1]} 6... d6 {[%clk 0:02:58.3]} 7. O-O
{[%clk 0:02:39.7]} 7... Nd7 {[%clk 0:02:58.7]} 8. Be3 {[%clk 0:02:38.4]} 8...
Be7 {[%clk 0:02:59.6]} 9. f4 {[%clk 0:02:39]} 9... Qc7 {[%clk 0:02:57.7]} 10.
Qd2 {[%clk 0:02:39.7]} 10... Ngf6 {[%clk 0:02:55.4]} 11. h3 {[%clk 0:02:40.1]}
11... h5 {[%clk 0:02:52.8]} 12. Nd1 {[%clk 0:02:36.7]} 12... a5 {[%clk
0:02:36.1]} 13. a3 {[%clk 0:02:36]} 13... b4 {[%clk 0:02:30.8]} 14. axb4 {[%clk
0:02:35.6]} 14... axb4 {[%clk 0:02:32.7]} 15. Rxa8+ {[%clk 0:02:35.1]} 15...
Bxa8 {[%clk 0:02:34.6]} 16. Nf2 {[%clk 0:02:35.3]} 16... O-O {[%clk 0:02:29.2]}
17. g4 {[%clk 0:02:35.7]} 17... hxg4 {[%clk 0:02:30.2]} 18. hxg4 {[%clk
0:02:34.3]} 18... Bb7 {[%clk 0:02:02.2]} 19. g5 {[%clk 0:02:35.1]} 19... Ne8
{[%clk 0:01:54.2]} 20. Ng4 {[%clk 0:02:35.4]} 20... d5 {[%clk 0:01:51.1]} 21. e5
{[%clk 0:02:30.5]} 21... d4 {[%clk 0:01:45.6]} 22. Bf2 {[%clk 0:02:26.8]} 22...
Bxg2 {[%clk 0:01:46.6]} 23. Kxg2 {[%clk 0:02:27.8]} 23... Qc6+ {[%clk
0:01:47.8]} 24. Kg1 {[%clk 0:02:17.6]} 24... Nc7 {[%clk 0:01:47.9]} 25. Bh4
{[%clk 0:02:00.5]} 25... b3 {[%clk 0:01:48.5]} 26. c4 {[%clk 0:01:56]} 26...
dxc3 {[%clk 0:01:47.7]} 27. Nxc3 {[%clk 0:01:57.1]} 27... c4 {[%clk 0:01:40.6]}
28. Ne4 {[%clk 0:01:41.7]} 28... cxd3 {[%clk 0:01:28.4]} 29. Ngf6+ {[%clk
0:01:39.2]} 29... Bxf6 {[%clk 0:01:28]} 30. Nxf6+ {[%clk 0:01:36.1]} 30... Nxf6
{[%clk 0:01:27.8]} 31. gxf6 {[%clk 0:01:37.3]} 31... g6 {[%clk 0:01:25.7]} 32.
f5 {[%clk 0:01:38.4]} 32... exf5 {[%clk 0:00:58.8]} 33. Qh6 {[%clk 0:01:35.6]}
33... Ne8 {[%clk 0:00:59.8]} 34. Rf2 {[%clk 0:01:22.1]} 34... Qe4 {[%clk
0:00:46.8]} 35. Rh2 {[%clk 0:01:12.3]} 35... d2 {[%clk 0:00:40.7]} 36. Rxd2
{[%clk 0:01:06.8]} 36... Qxe5 {[%clk 0:00:32.2]} 37. Rh2 {[%clk 0:01:07.7]}
37... Qe4 {[%clk 0:00:09.5]} 38. Bg3 {[%clk 0:00:25.6]} 38... Qb1+ {[%clk
0:00:05.2]} 39. Kg2 {[%clk 0:00:22.3]} 39... Qc2+ {[%clk 0:00:03.1]} 40. Bf2
{[%clk 0:00:21.7]} 40... Qe4+ {[%clk 0:00:03.9]} 41. Kf1 {[%clk 0:00:20.4]}
41... Qd3+ {[%clk 0:00:04.5]} 42. Kg2 {[%clk 0:00:18.2]} 42... Qe4+ {[%clk
0:00:05.7]} 43. Kg1 {[%clk 0:00:17.2]} 43... Qb1+ {[%clk 0:00:06.2]} 44. Kg2
{[%clk 0:00:18.3]} 44... Qe4+ {[%clk 0:00:07.3]} 45. Kf1 {[%clk 0:00:16.3]}
45... Qd3+ {[%clk 0:00:07.7]} 46. Kg1 {[%clk 0:00:13.9]} 46... Qb1+ {[%clk
0:00:08.7]} 47. Kg2 {[%clk 0:00:14.1]} 47... Qe4+ {[%clk 0:00:10.3]} 48. Kf1
{[%clk 0:00:14.3]} 48... Qd3+ {[%clk 0:00:08]} 49. Kg1 {[%clk 0:00:14.5]} 49...
Qb1+ {[%clk 0:00:09.1]} 50. Kg2 {[%clk 0:00:15.5]} 50... Qe4+ {[%clk 0:00:10.3]}
1/2-1/2

[Event "*** Qualifier 4: Titled Tuesday 3|2 Blitz"]
[Site "Chess.com"]
[Date "2017.04.25"]
[Round "3"]
[White "asms9699"]
[Black "Gordima"]
[Result "1-0"]
[WhiteElo "2460"]
[BlackElo "2496"]
[TimeControl "180+2"]
[EndTime "13:34:46 PDT"]
[Termination "asms9699 won by resignation"]

1. c4 {[%clk 0:03:02]} 1... Nf6 {[%clk 0:02:58.7]} 2. g3 {[%clk 0:03:01.4]} 2...
g6 {[%clk 0:03:00.1]} 3. Bg2 {[%clk 0:03:02.5]} 3... Bg7 {[%clk 0:03:01.7]} 4.
Nc3 {[%clk 0:03:04]} 4... O-O {[%clk 0:03:02.9]} 5. Nf3 {[%clk 0:03:05.6]} 5...
d6 {[%clk 0:03:04.1]} 6. O-O {[%clk 0:03:06.7]} 6... e5 {[%clk 0:03:05]} 7. d3
{[%clk 0:03:07.8]} 7... Nc6 {[%clk 0:03:00.7]} 8. b3 {[%clk 0:03:08.6]} 8... h6
{[%clk 0:02:56.7]} 9. Bb2 {[%clk 0:03:08.9]} 9... Be6 {[%clk 0:02:57.8]} 10. d4
{[%clk 0:03:09.6]} 10... exd4 {[%clk 0:02:55.2]} 11. Nxd4 {[%clk 0:03:10.1]}
11... Bd7 {[%clk 0:02:52.3]} 12. Nd5 {[%clk 0:03:08.1]} 12... a5 {[%clk
0:02:29.2]} 13. Qd2 {[%clk 0:03:04.8]} 13... Kh7 {[%clk 0:02:18.4]} 14. Rac1
{[%clk 0:03:01.5]} 14... a4 {[%clk 0:02:18.3]} 15. b4 {[%clk 0:02:53.6]} 15...
Ne8 {[%clk 0:02:05.4]} 16. Rfd1 {[%clk 0:02:34.1]} 16... a3 {[%clk 0:02:03]} 17.
Ba1 {[%clk 0:02:19.5]} 17... Ne5 {[%clk 0:02:03.4]} 18. Nf3 {[%clk 0:01:46.1]}
18... Ba4 {[%clk 0:01:51]} 19. Re1 {[%clk 0:01:39.2]} 19... c6 {[%clk
0:01:45.1]} 20. Nf4 {[%clk 0:01:03.5]} 20... Qe7 {[%clk 0:01:40.6]} 21. Nd3
{[%clk 0:01:00.2]} 21... Nxf3+ {[%clk 0:01:21.6]} 22. Bxf3 {[%clk 0:01:02.1]}
22... Nf6 {[%clk 0:01:21.3]} 23. Qc3 {[%clk 0:00:49.3]} 23... d5 {[%clk
0:00:51.4]} 24. cxd5 {[%clk 0:00:47]} 24... cxd5 {[%clk 0:00:52.1]} 25. Qxa3
{[%clk 0:00:39.5]} 25... Bb5 {[%clk 0:00:47.3]} 26. Qb2 {[%clk 0:00:34.2]} 26...
Bc4 {[%clk 0:00:46.6]} 27. a3 {[%clk 0:00:29.3]} 27... Rg8 {[%clk 0:00:47.6]}
28. Qd2 {[%clk 0:00:19.3]} 28... Rxa3 {[%clk 0:00:46.6]} 29. Nf4 {[%clk
0:00:20.3]} 29... Ra2 {[%clk 0:00:44.9]} 30. Qd1 {[%clk 0:00:19]} 30... Rd8
{[%clk 0:00:39.1]} 31. Bd4 {[%clk 0:00:18.3]} 31... Qxb4 {[%clk 0:00:39.8]} 32.
Rb1 {[%clk 0:00:17.9]} 32... Qa5 {[%clk 0:00:31.9]} 33. Rxb7 {[%clk 0:00:17.4]}
33... Rd2 {[%clk 0:00:32.7]} 34. Qa1 {[%clk 0:00:16.6]} 34... Ra2 {[%clk
0:00:32.2]} 35. Qc3 {[%clk 0:00:16.6]} 35... Qxc3 {[%clk 0:00:32.2]} 36. Bxc3
{[%clk 0:00:18.5]} 36... d4 {[%clk 0:00:33.8]} 37. Bb2 {[%clk 0:00:16.8]} 37...
g5 {[%clk 0:00:30]} 38. Nh5 {[%clk 0:00:16.1]} 38... Nxh5 {[%clk 0:00:18.9]} 39.
Bxh5 {[%clk 0:00:18]} 39... d3 {[%clk 0:00:12.4]} 40. exd3 {[%clk 0:00:17.6]}
40... Bd5 {[%clk 0:00:13.6]} 41. Bxg7 {[%clk 0:00:17]} 41... Bxb7 {[%clk
0:00:14.1]} 42. Bxf7 {[%clk 0:00:18]} 42... Ra4 {[%clk 0:00:05.7]} 43. Bf6
{[%clk 0:00:17.3]} 43... Rf8 {[%clk 0:00:06.7]} 44. Bb3 {[%clk 0:00:17.4]} 44...
Rb4 {[%clk 0:00:04.6]} 45. Be7 {[%clk 0:00:18.5]} 45... Re8 {[%clk 0:00:05]} 46.
Bxb4 {[%clk 0:00:17.6]} 1-0